bitfinex-derivatives/quotes_BTCF0:USTF0_20240925
["timestamp","ask_amount","ask_price","bid_price","bid_amount"]
[1727263629246,0.19680457,63633.0,63626.0,0.30825776]
[1727263629437,0.19680457,63632.0,63626.0,0.30825776]
[1727263629642,0.0326,63634.0,63631.0,0.16896667]
[1727263629839,0.19678037,63633.0,63629.0,0.16896667]
[1727263630141,0.19678037,63632.0,63630.0,0.17043953]
[1727263630449,0.19678037,63631.0,63626.0,0.30825776]
[1727263630650,0.19678037,63630.0,63629.0,0.17043953]
[1727263630950,0.19678037,63630.0,63626.0,0.30825776]
[1727263631144,0.19678037,63629.0,63626.0,0.30825776]
[1727263631345,0.19678037,63628.0,63627.0,0.17735865]
[1727263631745,0.18626531,63628.0,63627.0,0.17735865]
[1727263632544,0.1861132,63628.0,63627.0,0.17735865]
[1727263632948,0.1881132,63628.0,63627.0,0.17835865]
[1727263634050,0.1891132,63628.0,63627.0,0.17935865]
[1727263637249,0.1891132,63628.0,63627.0,0.00640235]
[1727263637250,0.003,63628.0,63627.0,0.00640235]
[1727263638249,0.003,63628.0,63627.0,0.03870235]
[1727263639958,0.003,63628.0,63627.0,0.51018235]
[1727263640346,0.0037,63637.0,63627.0,1.11018235]
[1727263640544,0.06621392,63637.0,63636.0,0.3608]
[1727263640858,0.06251392,63638.0,63636.0,0.53954761]
[1727263641052,0.06251392,63638.0,63637.0,0.14]
[1727263641444,0.06252651,63638.0,63637.0,0.30870868]
[1727263642045,0.01822865,63641.0,63637.0,0.30870868]
[1727263642242,0.0781424,63642.0,63637.0,0.30970868]
[1727263642243,0.06351084,63638.0,63637.0,0.30970868]
[1727263642552,0.06450643,63638.0,63637.0,0.31070868]
[1727263643145,0.002,63638.0,63637.0,0.31070868]
[1727263643768,0.06451912,63638.0,63637.0,0.31070868]
[1727263644053,0.002,63638.0,63637.0,0.31070868]
[1727263644357,0.12520493,63638.0,63637.0,0.27070868]
[1727263644861,0.12420493,63638.0,63637.0,0.63150868]
[1727263645049,0.19676139,63638.0,63637.0,0.66390868]
[1727263645253,0.12420493,63638.0,63637.0,0.66390868]
[1727263645956,0.12320493,63638.0,63637.0,0.66390868]
[1727263646461,0.0037,63647.0,63637.0,1.73534868]
[1727263646662,0.0037,63647.0,63646.0,0.4608]
[1727263646850,0.0037,63654.0,63646.0,0.28788683]
[1727263647155,0.0333,63656.0,63654.0,0.1]
[1727263647552,0.0333,63656.0,63655.0,0.17530655]
[1727263648346,0.0333,63656.0,63654.0,0.001]
[1727263648553,0.1,63655.0,63648.0,0.1]
[1727263648754,0.0333,63656.0,63645.0,0.1]
[1727263648755,0.3608,63650.0,63645.0,0.1]
[1727263648969,0.0306,63649.0,63645.0,0.1]
[1727263649155,0.0306,63649.0,63648.0,0.26836691]
[1727263649462,0.0306,63649.0,63648.0,0.1]
[1727263649661,0.0306,63649.0,63648.0,0.26836691]
[1727263650059,0.3626,63654.0,63648.0,0.26836691]
[1727263650246,0.3608,63654.0,63650.0,0.14]
[1727263650657,0.3608,63654.0,63651.0,0.16353113]
[1727263651458,0.05219141,63653.0,63651.0,0.16353113]
[1727263651647,0.05219141,63652.0,63651.0,0.16353113]
[1727263652056,0.05219141,63652.0,63651.0,0.16453113]
[1727263652260,0.09379493,63652.0,63651.0,0.16453113]
[1727263652447,0.09379493,63652.0,63651.0,0.001]
[1727263652657,0.09379493,63652.0,63651.0,0.17369371]
[1727263652860,0.001,63653.0,63651.0,0.17369371]
[1727263653458,0.001,63652.0,63651.0,0.17369371]
[1727263655472,0.3608,63654.0,63651.0,0.17369371]
[1727263656165,0.3608,63654.0,63651.0,0.17269371]
[1727263656369,0.07813431,63652.0,63651.0,0.17369371]
[1727263656556,0.3608,63654.0,63651.0,0.17369371]
[1727263657050,0.45459493,63654.0,63651.0,0.17369371]
[1727263657253,0.3608,63654.0,63651.0,0.17369371]
[1727263657456,0.45459493,63654.0,63651.0,0.17369371]
[1727263657751,0.45459493,63654.0,63651.0,0.17269371]
[1727263657952,0.45459493,63654.0,63651.0,0.17369371]
[1727263658153,0.09379493,63653.0,63651.0,0.17369371]
[1727263659163,0.09379493,63652.0,63651.0,0.17369371]
[1727263659359,0.13747668,63652.0,63651.0,0.00077453]
[1727263659567,0.13747668,63652.0,63651.0,0.1659354]
[1727263660366,0.13747668,63652.0,63651.0,0.1669354]
[1727263665262,0.13291407,63652.0,63651.0,0.1669354]
[1727263666555,0.30502231,63652.0,63651.0,0.1669354]
[1727263667467,0.5008,63654.0,63651.0,0.1669354]
[1727263668261,0.57905089,63654.0,63651.0,0.1669354]
[1727263668663,0.43905089,63654.0,63651.0,0.1669354]
[1727263669369,0.07825089,63653.0,63651.0,0.1669354]
[1727263670267,0.3618,63654.0,63651.0,0.1669354]
[1727263670659,0.09490107,63653.0,63651.0,0.1669354]
[1727263672369,0.09390107,63652.0,63651.0,0.1669354]
[1727263673470,0.001,63653.0,63651.0,0.1669354]
[1727263673870,0.001,63652.0,63651.0,0.1669354]
[1727263674287,0.101,63652.0,63651.0,0.1669354]
[1727263674571,0.29310424,63652.0,63651.0,0.04077267]
[1727263674967,0.13259004,63652.0,63651.0,0.04077267]
[1727263675157,0.1921306,63652.0,63651.0,0.04077267]
[1727263676369,0.1921306,63652.0,63651.0,0.03977267]
[1727263676569,0.1931306,63652.0,63651.0,0.04077267]
[1727263679372,0.18022125,63652.0,63651.0,0.04077267]
[1727263679581,0.13359004,63652.0,63651.0,0.04077267]
[1727263682370,0.001,63652.0,63651.0,0.04077267]
[1727263684580,0.001,63652.0,63651.0,0.11929211]
[1727263684783,0.0037,63659.0,63656.0,0.1]
[1727263684982,0.0037,63662.0,63658.0,0.3608]
[1727263685179,0.06273162,63664.0,63661.0,0.1]
[1727263685373,0.09503162,63665.0,63663.0,0.1]
[1727263685774,0.09503162,63665.0,63664.0,0.17738995]
[1727263686684,0.0323,63665.0,63664.0,0.17738995]
[1727263687085,0.0323,63665.0,63664.0,0.17838995]
[1727263687280,0.0323,63665.0,63664.0,0.17938995]
[1727263689881,0.09503162,63665.0,63664.0,0.17938995]
[1727263690282,0.0323,63665.0,63664.0,0.31938995]
[1727263691179,0.0323,63665.0,63664.0,0.36646919]
[1727263691379,0.0323,63665.0,63664.0,0.31838995]
[1727263691580,0.0323,63665.0,63664.0,0.31938995]
[1727263692183,0.0323,63665.0,63664.0,0.17838995]
[1727263692383,0.0323,63665.0,63664.0,0.17938995]
[1727263694988,0.06273162,63667.0,63664.0,0.17938995]
[1727263695185,0.06261432,63667.0,63666.0,0.14]
[1727263695500,0.06261432,63667.0,63666.0,0.31112112]
[1727263696582,0.03784587,63667.0,63666.0,0.31212112]
[1727263696789,0.15922707,63668.0,63666.0,0.31212112]
[1727263697083,0.13171938,63667.0,63666.0,0.31212112]
[1727263697391,0.13171938,63668.0,63666.0,0.31212112]
[1727263697593,0.13171938,63668.0,63666.0,0.31312112]
[1727263698688,0.14088459,63667.0,63666.0,0.31312112]
[1727263698884,0.27260397,63667.0,63666.0,0.31312112]
[1727263699184,0.20696412,63667.0,63666.0,0.67392112]
[1727263699381,0.08172273,63667.0,63666.0,0.67392112]
[1727263699577,0.03781627,63667.0,63666.0,0.67292112]
[1727263699781,0.1095787,63667.0,63666.0,0.67292112]
[1727263699987,0.14739497,63667.0,63666.0,0.67392112]
[1727263700181,0.14739575,63667.0,63666.0,0.67392112]
[1727263700384,0.10956922,63667.0,63666.0,0.67392112]
[1727263701386,0.14738549,63667.0,63666.0,0.67392112]
[1727263702087,0.10956922,63667.0,63666.0,0.67392112]
[1727263702289,0.08212574,63667.0,63666.0,0.67392112]
[1727263702495,0.03781627,63667.0,63666.0,0.67392112]
[1727263702687,0.08211707,63667.0,63666.0,0.67392112]
[1727263703091,0.03781627,63667.0,63666.0,0.67392112]
[1727263703393,0.0443008,63667.0,63666.0,0.67392112]
[1727263703591,0.12524139,63670.0,63666.0,0.67392112]
[1727263704393,0.20735846,63669.0,63666.0,0.67392112]
[1727263704590,0.01771278,63674.0,63668.0,0.14]
[1727263704790,0.06263262,63676.0,63668.0,0.14]
[1727263704993,0.06263262,63676.0,63669.0,0.17401254]
[1727263705393,0.10969078,63679.0,63669.0,0.17401254]
[1727263705394,0.06263262,63674.0,63669.0,0.17401254]
[1727263705596,0.10899078,63678.0,63669.0,0.17401254]
[1727263705597,0.06263262,63675.0,63669.0,0.17401254]
[1727263705799,0.10899078,63678.0,63669.0,0.17401254]
[1727263705800,0.06263262,63674.0,63669.0,0.17401254]
[1727263706001,0.06263262,63675.0,63669.0,0.17401254]
[1727263706402,0.06263262,63674.0,63669.0,0.17401254]
[1727263706597,0.06263262,63674.0,63669.0,0.17601254]
[1727263708502,0.06263262,63673.0,63669.0,0.17601254]
[1727263708708,0.0308,63672.0,63669.0,0.17601254]
[1727263709000,0.0308,63672.0,63669.0,0.17501254]
[1727263709195,0.0308,63672.0,63669.0,0.17601254]
[1727263709705,0.09343262,63672.0,63669.0,0.17601254]
[1727263711498,0.06263262,63671.0,63669.0,0.17601254]
[1727263711806,0.09343262,63672.0,63669.0,0.17601254]
[1727263712501,0.06263262,63671.0,63669.0,0.17601254]
[1727263713403,0.06263262,63671.0,63669.0,0.17501254]
[1727263713699,0.06263262,63671.0,63669.0,0.17601254]
[1727263714494,0.0308,63672.0,63670.0,0.04700242]
[1727263715406,0.0308,63672.0,63669.0,0.04900242]
[1727263715604,0.0308,63672.0,63670.0,0.001]
[1727263715908,0.0308,63672.0,63670.0,0.102]
[1727263716306,0.06271294,63671.0,63670.0,0.102]
[1727263718106,0.06271294,63671.0,63670.0,0.101]
[1727263718303,0.0308,63672.0,63670.0,0.14807103]
[1727263718508,0.0308,63672.0,63670.0,0.04907103]
[1727263718898,0.0308,63672.0,63671.0,0.04707103]
[1727263719100,0.0308,63672.0,63670.0,0.14907103]
[1727263719303,0.0308,63672.0,63671.0,0.21196691]
[1727263719814,0.21319395,63672.0,63671.0,0.16489588]
[1727263720006,0.26360125,63672.0,63670.0,0.002]
[1727263720201,0.13280125,63671.0,63670.0,0.001]
[1727263720406,0.70396125,63671.0,63666.0,0.3109]
[1727263720601,0.1,63667.0,63666.0,0.3109]
[1727263720808,0.23280125,63667.0,63666.0,0.3109]
[1727263721004,0.70400125,63667.0,63666.0,0.3109]
[1727263721709,0.70400125,63667.0,63663.0,0.3608]
[1727263721910,0.22491887,63666.0,63663.0,0.3608]
[1727263722106,0.13280125,63665.0,63663.0,0.3608]
[1727263722304,0.13280125,63664.0,63663.0,0.3608]
[1727263722503,0.23280125,63664.0,63663.0,0.3608]
[1727263722813,0.23280125,63664.0,63663.0,0.3618]
[1727263723201,0.23280125,63664.0,63663.0,0.3628]
[1727263724310,0.23280125,63664.0,63663.0,0.3618]
[1727263724520,0.23480125,63664.0,63663.0,0.3628]
[1727263725012,0.23680125,63664.0,63663.0,0.3628]
[1727263726105,0.13680125,63664.0,63663.0,0.3628]
[1727263726615,0.004,63664.0,63663.0,0.4628]
[1727263728412,0.004,63664.0,63663.0,0.14908606]
[1727263728413,0.06671858,63664.0,63663.0,0.14908606]
[1727263728800,0.06671858,63664.0,63663.0,0.14908452]
[1727263729002,0.004,63664.0,63663.0,0.14908452]
[1727263729806,0.004,63664.0,63663.0,0.102]
[1727263731408,0.0667038,63664.0,63663.0,0.102]
[1727263731603,0.06669749,63664.0,63663.0,0.102]
[1727263732018,0.004,63664.0,63663.0,0.102]
[1727263734712,0.08580358,63664.0,63663.0,0.102]
[1727263735210,0.08575078,63664.0,63663.0,0.102]
[1727263737614,0.004,63664.0,63663.0,0.102]
[1727263738022,0.13582062,63664.0,63663.0,0.102]
[1727263739113,0.08575078,63664.0,63663.0,0.102]
[1727263740723,0.05409391,63664.0,63663.0,0.102]
[1727263740915,0.13584469,63664.0,63663.0,0.102]
[1727263741715,0.004,63664.0,63663.0,0.34498833]
[1727263741915,0.06269052,63674.0,63663.0,0.36993503]
[1727263742118,0.0037,63674.0,63669.0,0.1]
[1727263742424,0.06269052,63676.0,63673.0,0.1]
[1727263742621,0.06269052,63676.0,63675.0,0.04707232]
[1727263743127,0.01806847,63676.0,63675.0,0.04707232]
[1727263743326,0.06504688,63677.0,63675.0,0.04707232]
[1727263744631,0.06504688,63677.0,63675.0,0.04807232]
[1727263745017,0.06504688,63677.0,63675.0,0.04907232]
[1727263745617,0.00235636,63677.0,63675.0,0.04907232]
[1727263745821,0.06504688,63677.0,63675.0,0.04907232]
[1727263746019,0.00235636,63677.0,63675.0,0.04907232]
[1727263746219,0.00235636,63677.0,63675.0,0.04807232]
[1727263746420,0.00235636,63677.0,63675.0,0.04907232]
[1727263747129,0.02024738,63677.0,63675.0,0.04907232]
[1727263747424,0.06504688,63677.0,63676.0,0.1]
[1727263747835,0.00235636,63677.0,63676.0,0.1]
[1727263748626,0.06504688,63677.0,63676.0,0.101]
[1727263749334,0.00235636,63677.0,63676.0,0.101]
[1727263749834,0.10294348,63677.0,63676.0,0.102]
[1727263750130,0.08500358,63677.0,63676.0,0.102]
[1727263750321,0.13556582,63677.0,63676.0,0.102]
[1727263750725,0.13556582,63677.0,63676.0,0.27961169]
[1727263752033,0.13548865,63677.0,63676.0,0.27961169]
[1727263754038,0.13548865,63677.0,63676.0,0.102]
[1727263756540,0.21279217,63677.0,63676.0,0.102]
[1727263756745,0.00235636,63677.0,63676.0,0.102]
[1727263757443,0.09393055,63679.0,63676.0,0.102]
[1727263759038,0.09393055,63679.0,63676.0,0.101]
[1727263759237,0.09393055,63679.0,63676.0,0.102]
[1727263759438,0.09393055,63680.0,63677.0,0.18004275]
[1727263759647,0.09393055,63680.0,63679.0,0.1]
[1727263760033,0.09393055,63680.0,63679.0,0.28004275]
[1727263761444,0.09393055,63680.0,63679.0,0.28104275]
[1727263761636,0.01810643,63681.0,63679.0,0.28104275]
[1727263761843,0.07827772,63683.0,63679.0,0.28104275]
[1727263762042,0.07827772,63684.0,63682.0,0.1]
[1727263762343,0.0321,63686.0,63683.0,0.1]
[1727263762646,0.07827446,63684.0,63683.0,0.1]
[1727263763649,0.07827446,63684.0,63683.0,0.101]
[1727263763942,0.07827446,63685.0,63683.0,0.101]
[1727263764342,0.07827446,63685.0,63683.0,0.1]
[1727263764551,0.07827446,63685.0,63683.0,0.101]
[1727263765053,0.13447053,63684.0,63683.0,0.101]
[1727263765347,0.13447053,63684.0,63683.0,0.102]
[1727263765939,0.13447053,63684.0,63683.0,0.101]
[1727263766138,0.13447053,63684.0,63683.0,0.102]
[1727263766845,0.13447053,63684.0,63683.0,0.101]
[1727263767045,0.13447053,63684.0,63683.0,0.102]
[1727263767545,0.13447053,63684.0,63683.0,0.101]
[1727263767748,0.13447053,63684.0,63683.0,0.102]
[1727263771836,0.23487134,63684.0,63683.0,0.102]
[1727263772037,0.07832041,63684.0,63683.0,0.102]
[1727263772640,0.07832041,63684.0,63683.0,0.002]
[1727263772938,0.15053043,63686.0,63683.0,0.002]
[1727263773347,0.0384462,63685.0,63683.0,0.002]
[1727263773554,0.15053043,63686.0,63683.0,0.002]
[1727263773750,0.03844279,63685.0,63683.0,0.002]
[1727263773939,0.05053043,63686.0,63683.0,0.002]
[1727263774145,0.1,63684.0,63683.0,0.001]
[1727263774344,0.1,63684.0,63683.0,0.002]
[1727263776855,0.1,63684.0,63683.0,0.001]
[1727263777054,0.1,63684.0,63683.0,0.002]
[1727263778451,0.1,63684.0,63683.0,0.001]
[1727263778653,0.1,63684.0,63683.0,0.002]
[1727263778958,0.13847959,63684.0,63683.0,0.002]
[1727263779953,0.1,63684.0,63683.0,0.002]
[1727263780155,0.16266904,63684.0,63683.0,0.002]
[1727263780554,0.16267219,63684.0,63683.0,0.002]
[1727263780952,0.1,63684.0,63683.0,0.002]
[1727263781656,0.1,63684.0,63683.0,0.001]
[1727263781848,0.63375404,63684.0,63683.0,0.002]
[1727263782052,0.57108,63684.0,63683.0,0.002]
[1727263783361,0.05053043,63686.0,63683.0,0.002]
[1727263784961,0.06267769,63684.0,63683.0,0.002]
[1727263786263,0.05053043,63686.0,63683.0,0.002]
[1727263786467,0.06267878,63684.0,63683.0,0.002]
[1727263786650,0.06267989,63684.0,63683.0,0.001]
[1727263786851,0.05053043,63686.0,63683.0,0.002]
[1727263790968,0.12886618,63686.0,63683.0,0.002]
[1727263791570,0.05053043,63686.0,63683.0,0.002]
[1727263793767,0.12886618,63686.0,63683.0,0.002]
[1727263794282,0.22886618,63686.0,63683.0,0.002]
[1727263798473,0.22886618,63686.0,63683.0,0.04907232]
[1727263799177,0.22886618,63686.0,63683.0,0.002]
[1727263799384,0.07833575,63685.0,63683.0,0.002]
[1727263799877,0.07833575,63685.0,63683.0,0.04907232]
[1727263801281,0.07833575,63685.0,63683.0,0.04807232]
[1727263801489,0.07833575,63685.0,63684.0,0.04707232]
[1727263801690,0.15053043,63686.0,63684.0,0.04707232]
[1727263802879,0.15053043,63686.0,63684.0,0.04807232]
[1727263803079,0.3608,63685.0,63684.0,0.04907232]
[1727263805481,0.3608,63685.0,63683.0,0.04707232]
[1727263805682,0.1,63683.0,63682.0,0.04707232]
[1727263805985,0.1,63683.0,63681.0,0.04707232]
[1727263806183,0.0940029,63684.0,63681.0,0.04707232]
[1727263806184,0.1,63682.0,63681.0,0.04707232]
[1727263807074,0.1,63682.0,63675.0,0.0037]
[1727263807281,0.4608,63676.0,63675.0,0.0037]
[1727263807474,0.4608,63676.0,63665.0,0.09415294]
[1727263807475,0.53925589,63676.0,63669.0,0.3645]
[1727263807690,0.1,63670.0,63669.0,0.3608]
[1727263808283,0.4608,63670.0,63667.0,0.07846079]
[1727263808584,0.4608,63670.0,63663.0,0.0060557]
[1727263808585,0.0627452,63668.0,63663.0,0.08081649]
[1727263808787,0.4608,63664.0,63663.0,0.0023557]
[1727263810276,0.06266857,63664.0,63663.0,0.8343957]
[1727263810474,0.0037,63671.0,63663.0,1.6135182]
[1727263810680,0.3626,63677.0,63670.0,0.1]
[1727263810681,0.0037,63674.0,63670.0,0.1]
[1727263810983,0.06266857,63675.0,63673.0,0.1]
[1727263811387,0.06266857,63675.0,63674.0,0.1697369]
[1727263811687,0.0809945,63676.0,63674.0,0.1697369]
[1727263811893,0.06266857,63676.0,63674.0,0.1697369]
[1727263813288,0.06266857,63676.0,63674.0,0.1717369]
[1727263814393,0.44127861,63677.0,63674.0,0.1717369]
[1727263816594,0.06266857,63676.0,63674.0,0.1717369]
[1727263816981,0.37861004,63677.0,63674.0,0.1717369]
[1727263818087,0.3608,63677.0,63674.0,0.1717369]
[1727263818795,0.3608,63677.0,63674.0,0.1707369]
[1727263818986,0.3608,63677.0,63674.0,0.1717369]
[1727263822497,0.3608,63677.0,63676.0,0.14]
[1727263822891,0.3608,63677.0,63676.0,0.31014795]
[1727263823398,0.01765538,63680.0,63676.0,0.31014795]
[1727263823600,0.42346857,63682.0,63676.0,0.31114795]
[1727263823787,0.42346857,63682.0,63676.0,0.31214795]
[1727263823983,0.42534858,63682.0,63676.0,0.31214795]
[1727263824794,0.42346857,63682.0,63676.0,0.31214795]
[1727263825002,0.3608,63682.0,63676.0,0.31214795]
[1727263826001,0.0037,63684.0,63681.0,0.14]
[1727263826295,0.0037,63687.0,63682.0,0.16504354]
[1727263826490,0.3608,63690.0,63682.0,0.16504354]
[1727263826491,0.42346857,63690.0,63682.0,0.16504354]
[1727263826687,0.06266857,63689.0,63682.0,0.16504354]
[1727263827488,0.3608,63690.0,63682.0,0.16504354]
[1727263827489,0.42346857,63690.0,63682.0,0.16504354]
[1727263828295,0.44170679,63690.0,63682.0,0.16504354]
[1727263829197,0.44170679,63690.0,63682.0,0.16604354]
[1727263829403,0.44170679,63690.0,63682.0,0.16704354]
[1727263831999,0.58170679,63690.0,63682.0,0.16704354]
[1727263832187,0.61310679,63690.0,63682.0,0.16704354]
[1727263832393,0.06266857,63689.0,63682.0,0.16704354]
[1727263832893,0.06266857,63689.0,63682.0,0.002]
[1727263833799,0.06266857,63689.0,63683.0,0.18026016]
[1727263835594,0.06266857,63689.0,63683.0,0.18126016]
[1727263836204,0.06266857,63689.0,63683.0,0.18226016]
[1727263836405,0.06266857,63689.0,63683.0,0.28226016]
[1727263838195,0.06266857,63688.0,63683.0,0.28226016]
[1727263838605,0.1,63687.0,63683.0,0.18226016]
[1727263839297,0.16266857,63687.0,63683.0,0.18226016]
[1727263840124,0.3608,63685.0,63683.0,0.18226016]
[1727263840407,0.11207751,63684.0,63683.0,0.18226016]
[1727263840992,0.02545572,63684.0,63683.0,0.18226016]
[1727263841195,0.08675808,63684.0,63683.0,0.18226016]
[1727263841405,0.02545572,63684.0,63683.0,0.18226016]
[1727263841598,0.12531266,63685.0,63683.0,0.18226016]
[1727263841997,0.12531266,63685.0,63684.0,0.1]
[1727263842703,0.1122138,63685.0,63684.0,0.1]
[1727263842904,0.12531266,63685.0,63684.0,0.1]
[1727263843110,0.12531266,63685.0,63684.0,0.101]
[1727263844503,0.19085163,63685.0,63684.0,0.101]
[1727263844700,0.12531266,63685.0,63684.0,0.101]
[1727263845207,0.1122138,63686.0,63684.0,0.101]
[1727263845406,0.1122138,63685.0,63684.0,0.102]
[1727263846107,0.04667483,63685.0,63684.0,0.102]
[1727263846313,0.1122138,63686.0,63684.0,0.102]
[1727263847106,0.06277658,63685.0,63684.0,0.102]
[1727263847602,0.06277658,63685.0,63684.0,0.27040724]
[1727263848000,0.06277658,63685.0,63684.0,0.26940724]
[1727263848201,0.06277658,63685.0,63684.0,0.27040724]
[1727263848998,0.06277658,63685.0,63684.0,0.26940724]
[1727263849201,0.06277658,63685.0,63684.0,0.27040724]
[1727263849715,0.06277658,63685.0,63684.0,0.26940724]
[1727263849902,0.06277658,63685.0,63684.0,0.27040724]
[1727263850312,0.06277658,63685.0,63684.0,0.17040724]
[1727263850512,0.06277658,63685.0,63684.0,0.002]
[1727263853318,0.3608,63687.0,63684.0,0.002]
[1727263855223,0.23788479,63686.0,63684.0,0.002]
[1727263856714,0.17296835,63685.0,63684.0,0.002]
[1727263859320,0.11236835,63685.0,63684.0,0.002]
[1727263859524,0.23792152,63686.0,63684.0,0.002]
[1727263859820,0.11236835,63685.0,63684.0,0.002]
[1727263860021,0.11236835,63685.0,63684.0,0.3628]
[1727263860022,0.02545531,63685.0,63684.0,0.3628]
[1727263860217,0.10991112,63685.0,63684.0,0.002]
[1727263860518,0.06567334,63685.0,63684.0,0.3628]
[1727263860816,0.06567334,63685.0,63684.0,0.4628]
[1727263861205,0.02545531,63685.0,63684.0,0.4618]
[1727263861409,0.06567334,63685.0,63684.0,0.4628]
[1727263861610,0.10991112,63687.0,63684.0,0.4628]
[1727263861816,0.04021803,63686.0,63684.0,0.4628]
[1727263862119,0.06278943,63687.0,63685.0,0.07852113]
[1727263862314,0.06278943,63687.0,63684.0,0.54212113]
[1727263862516,0.06278943,63688.0,63685.0,0.07852113]
[1727263862827,0.06278943,63687.0,63685.0,0.07852113]
[1727263863310,0.06278943,63688.0,63684.0,0.54216113]
[1727263863508,0.06278943,63689.0,63685.0,0.17977738]
[1727263863716,0.06278943,63689.0,63685.0,0.07852113]
[1727263863920,0.06278943,63689.0,63687.0,0.1]
[1727263864116,0.09692999,63692.0,63688.0,0.17974218]
[1727263864117,0.08123264,63692.0,63688.0,0.17974218]
[1727263864328,0.08123264,63692.0,63691.0,0.1]
[1727263864329,0.01844321,63692.0,63691.0,0.1]
[1727263864512,0.06278943,63693.0,63691.0,0.1]
[1727263864714,0.42358943,63694.0,63691.0,0.26356329]
[1727263865116,0.06278943,63693.0,63691.0,0.16356329]
[1727263865314,0.37914643,63694.0,63693.0,0.09]
[1727263865820,0.37914643,63694.0,63693.0,0.29771247]
[1727263866224,0.37914643,63694.0,63693.0,0.19771247]
[1727263866908,0.37914643,63694.0,63693.0,0.16561247]
[1727263867115,0.44193586,63694.0,63693.0,0.16661247]
[1727263867327,0.37914643,63694.0,63693.0,0.16661247]
[1727263867519,0.44193586,63694.0,63693.0,0.16661247]
[1727263867718,0.37914643,63694.0,63693.0,0.26661247]
[1727263868017,0.37914643,63694.0,63693.0,0.32936285]
[1727263868325,0.37914643,63694.0,63693.0,0.32935323]
[1727263868713,0.37914643,63694.0,63693.0,0.33035323]
[1727263869820,0.0037,63701.0,63693.0,1.7895442]
[1727263870121,0.06271242,63701.0,63700.0,0.09]
[1727263870322,0.08042546,63703.0,63700.0,0.14]
[1727263870520,0.08042546,63703.0,63700.0,0.30567499]
[1727263870715,0.01771304,63703.0,63700.0,0.30567499]
[1727263870910,0.06271242,63704.0,63700.0,0.30567499]
[1727263871429,0.06271242,63703.0,63700.0,0.30567499]
[1727263872415,0.06271242,63704.0,63700.0,0.16567499]
[1727263872811,0.06271242,63704.0,63700.0,0.001]
[1727263873137,0.06271242,63704.0,63701.0,0.17924728]
[1727263874314,0.06271242,63705.0,63701.0,0.17924728]
[1727263875835,0.06271242,63705.0,63701.0,0.18024728]
[1727263876322,0.06271242,63705.0,63701.0,0.18124728]
[1727263876718,0.06271242,63705.0,63701.0,0.18024728]
[1727263876915,0.06271242,63705.0,63701.0,0.18124728]
[1727263877120,0.31228808,63704.0,63701.0,0.18124728]
[1727263877323,0.17131134,63703.0,63701.0,0.18124728]
[1727263877611,0.11594625,63702.0,63701.0,0.18124728]
[1727263878320,0.11594625,63702.0,63701.0,0.18024728]
[1727263878521,0.11594625,63702.0,63701.0,0.18124728]
[1727263878926,0.11593086,63702.0,63701.0,0.18124728]
[1727263879116,0.11593086,63702.0,63701.0,0.18024728]
[1727263879321,0.11593086,63702.0,63701.0,0.18124728]
[1727263879825,0.11593086,63702.0,63701.0,0.18024728]
[1727263880149,0.11593086,63702.0,63701.0,0.18124728]
[1727263880628,0.11593086,63702.0,63701.0,0.18024728]
[1727263880933,0.11593086,63702.0,63701.0,0.18124728]
[1727263883927,0.17133125,63702.0,63701.0,0.18124728]
[1727263884131,0.062616,63705.0,63701.0,0.18124728]
[1727263885227,0.062616,63705.0,63704.0,0.14]
[1727263885420,0.01777223,63707.0,63704.0,0.14]
[1727263885628,0.062616,63708.0,63704.0,0.30743458]
[1727263886025,0.062616,63709.0,63704.0,0.30743458]
[1727263886236,0.062616,63708.0,63704.0,0.30743458]
[1727263887035,0.14097674,63748.0,63735.0,0.3608]
[1727263887222,0.14097674,63764.0,63747.0,0.7216]
[1727263887428,0.14,63765.0,63763.0,0.3608]
[1727263887926,0.14,63765.0,63753.0,0.0037]
[1727263887927,0.47048,63764.0,63753.0,0.0037]
[1727263888130,0.14,63754.0,63750.0,0.3608]
[1727263888348,0.3608,63765.0,63750.0,0.3608]
[1727263888533,0.14,63752.0,63750.0,0.3109]
[1727263888930,0.4706,63751.0,63750.0,0.3109]
[1727263889129,0.4706,63751.0,63750.0,0.2111]
[1727263889334,1.0706,63751.0,63750.0,0.001]
[1727263891136,1.0706,63751.0,63750.0,0.002]
[1727263892238,1.57421929,63751.0,63740.0,0.0037]
[1727263892543,0.5008,63741.0,63734.0,0.0037]
[1727263892743,0.5008,63741.0,63729.0,0.3645]
[1727263892744,0.14,63735.0,63729.0,0.3645]
[1727263892945,0.14,63730.0,63723.0,0.3608]
[1727263893143,0.14,63730.0,63729.0,0.3608]
[1727263893344,0.22658135,63730.0,63729.0,0.3608]
[1727263893845,0.24480348,63730.0,63729.0,0.3608]
[1727263894547,0.24480348,63730.0,63729.0,0.3618]
[1727263894744,0.24480348,63730.0,63729.0,0.001]
[1727263895639,0.24580348,63730.0,63729.0,0.002]
[1727263896337,0.25380348,63730.0,63729.0,0.002]
[1727263896747,0.23558135,63730.0,63729.0,0.002]
[1727263897048,0.23558135,63730.0,63729.0,0.001]
[1727263897049,0.23658135,63730.0,63729.0,0.001]
[1727263897347,0.27791128,63730.0,63729.0,0.24637369]
[1727263897538,0.10658135,63730.0,63729.0,0.24637369]
[1727263897741,0.10658135,63730.0,63729.0,0.27677369]
[1727263897939,0.09558135,63730.0,63729.0,0.27777369]
[1727263898146,0.10458135,63730.0,63729.0,0.27877369]
[1727263899241,0.3608,63740.0,63729.0,0.27877369]
[1727263900241,0.01,63730.0,63729.0,0.27777369]
[1727263900441,0.017,63730.0,63729.0,0.27777369]
[1727263900845,0.007,63730.0,63729.0,0.27777369]
[1727263901249,0.3698,63740.0,63729.0,0.27677369]
[1727263901549,0.001,63730.0,63729.0,0.27677369]
[1727263902051,0.017,63730.0,63729.0,0.27777369]
[1727263904451,0.14,63736.0,63729.0,0.27677369]
[1727263904761,0.14,63736.0,63729.0,0.0304]
[1727263904958,0.15793378,63736.0,63729.0,0.0304]
[1727263905149,0.007,63730.0,63729.0,0.0324]
[1727263906259,0.007,63730.0,63729.0,0.0314]
[1727263907149,0.15893378,63736.0,63729.0,0.0304]
[1727263907763,0.15793378,63736.0,63729.0,0.0304]
[1727263908448,0.001,63730.0,63729.0,0.0304]